[Event "DEN-ch Seniors 2018"]
[Site "Hvidovre"]
[Date "2018.02.17"]
[Round "6"]
[White "Lilja, Richard"]
[Black "Hald, Jens Erik Kofoed"]
[Result "1/2-1/2"]
[ECO "B21"]
[WhiteElo "2086"]
[BlackElo "1983"]
[Annotator "NA RC"]
[PlyCount "30"]
[EventDate "2018.??.??"]
[EventType "tourn"]
[EventCountry "DEN"]
[SourceTitle "playchess.com"]
[Source "ChessBase"]
[SourceQuality "1"]
[TimeControl "40/5400+30:1800+30"]

{[%evp 8,24,-29,-35,-33,-20,-26,-28,-15,-28,0,0,0,32767,-5,-18,-5,-14,0]} 1. e4 {[%emt 0:05:30]} c5 {[%emt 0:00:51]} 2. d4 {[%emt 0:00:15]} cxd4 {[%emt 0:00:16]} 3. c3 {[%emt 0:00:15]} dxc3 {[%emt 0:00:10]} 4. Nxc3 {[%emt 0:00:06]} Nc6 {[%emt 0:00:14]} 5. Nf3 {[%emt 0:00:06]} d6 {[%emt 0:00:20]} 6. Bc4 {[%emt 0:00:07]} e6 {[%emt 0:00:14]} 7. O-O {[%emt 0:00:14]} Be7 {[%emt 0:00:13]} 8. Qe2 {[%emt 0:00:38]} Nf6 {[%emt 0:00:16]} 9. Rd1 {[%emt 0:00:43]} e5 {[%emt 0:00:18] LiveBook: 95 Games} 10. Bg5 {[%emt 0:19:55]} Bg4 {[%emt 0:02:29]} 11. Be3 {[%emt 0:08:27]} O-O {[%emt 0:02:19]} 12. h3 {[%emt 0:00:28]} Bh5 $11 {[%emt 0:02:52]} 13. Rd2 {[%emt 0:09:28]} a6 {[%emt 0:07:36]} 14. a3 {[%emt 0:02:07]} Rc8 {[%emt 0:01:26]} 15. Rad1 {[%emt 0:07:53]} h6 {[%emt 0:13:39]} 1/2-1/2

[Event "DEN-ch Seniors 2018"]
[Site "Hvidovre"]
[Date "2018.02.17"]
[Round "6"]
[White "Olesen, Poul Erik Norgaard"]
[Black "Munk, Kai"]
[Result "0-1"]
[ECO "B06"]
[WhiteElo "2010"]
[BlackElo "2023"]
[Annotator "NA"]
[PlyCount "118"]
[EventDate "2018.??.??"]
[EventType "tourn"]
[EventCountry "DEN"]
[SourceTitle "playchess.com"]
[Source "ChessBase"]
[SourceQuality "1"]
[TimeControl "40/5400+30:1800+30"]

1. e4 g6 2. d4 Bg7 3. Nc3 d6 4. Be3 c6 5. Qd2 Qc7 6. h3 {B06: Modern Defence} (6. h4 h5 7. O-O-O b5 8. Kb1 Nd7 9. Nh3 Nb6 10. Bd3 Bxh3 11. Rxh3 Nf6 12. f3 Nc4 13. Bxc4 bxc4 {1-0 (39) Fedorchuk,S (2623)-Tabak,S (2261) Leiden 2017}) 6... Nd7 7. Nf3 Nb6 8. Be2 h6 $146 ({Predecessor:} 8... Bd7 9. a4 a5 10. O-O Nf6 11. Ng5 h6 12. Nf3 e5 13. dxe5 dxe5 14. Rfd1 {1-0 (23) Saucey,M (2366)-Gallant,A (1922) Pornic 2009}) 9. a4 Be6 10. b3 a5 11. Rd1 d5 12. Bf4 Qd8 13. e5 g5 14. Bg3 Bf5 15. Bd3 e6 16. h4 g4 17. Nh2 h5 18. Bxf5 exf5 19. Ne2 Bh6 20. Nf4 Qe7 21. O-O Bxf4 (21... Nd7 $16) 22. Qxf4 (22. Bxf4 $18 Qe6 23. Rfe1) 22... Qe6 23. Rfe1 Ne7 24. Nf1 Nd7 25. Ne3 Nf8 26. c4 Qg6 27. Nc2 $2 (27. cxd5 $11 cxd5 28. e6 Nxe6 29. Qd6) 27... Qh6 $2 (27... Ne6 $19 28. Qd2 {[#]} f4 $1 {[%mdl 512]} 29. Bxf4 Nxf4 30. Qxf4 Qxc2) 28. Qxh6 Rxh6 29. Bf4 Rg6 30. Bg5 Rxg5 31. hxg5 Ne6 32. cxd5 cxd5 33. Na3 Nxg5 34. Nb5 Kf8 35. Rc1 Rb8 36. Rc2 Ne6 37. Rec1 Kg7 ({Better is} 37... f4 $11) 38. g3 f4 39. gxf4 Nxf4 40. Kh2 Ne6 41. Kg3 Rh8 42. Rh1 Nf5+ 43. Kg2 h4 44. Rd1 Ng5 45. Nd6 h3+ 46. Kh1 Nh4 47. Rc7 Nhf3 48. Nxf7 Nxf7 49. e6 N3g5 50. exf7 Ne4 51. Kh2 Rh6 52. Rf1 ({Less strong is} 52. Rxb7 Rf6 $16) (52. Rg1 $18 Rg6 53. Rxb7) 52... Rf6 {[#]} 53. f4 $4 {[#]} (53. f3 $1 $18) 53... Rh6 $19 54. Rc2 g3+ 55. Kg1 Kxf7 56. Re2 Kf6 57. Rf3 Kf5 58. Rxe4 dxe4 59. Rxg3 Rg6 0-1

[Event "DEN-ch Seniors 2018"]
[Site "Hvidovre"]
[Date "2018.02.17"]
[Round "6"]
[White "Morkore, Thomas"]
[Black "Lindestrom, Torsten"]
[Result "1/2-1/2"]
[ECO "A06"]
[WhiteElo "1910"]
[BlackElo "2194"]
[Annotator "ChessBase"]
[PlyCount "108"]
[EventDate "2018.??.??"]
[EventType "tourn"]
[EventCountry "DEN"]
[SourceTitle "playchess.com"]
[Source "ChessBase"]
[SourceQuality "1"]
[TimeControl "40/5400+30:1800+30"]

1. Nf3 {[%emt 0:00:00]} d5 {[%emt 0:00:54]} 2. d4 {[%emt 0:01:20]} c6 {[%emt 0:01:07]} 3. c4 {[%emt 0:00:53]} e6 {[%emt 0:00:19]} 4. Bg5 {[%emt 0:02:48]} Be7 {[%emt 0:02:07]} 5. Bxe7 {[%emt 0:01:30]} Qxe7 {[%emt 0:00:04]} 6. e3 {[%emt 0:03:15]} Nf6 {[%emt 0:06:07]} 7. Nbd2 {[%emt 0:02:28]} O-O {[%emt 0:03:58]} 8. Bd3 {[%emt 0:04:54]} Nbd7 {[%emt 0:02:37]} 9. O-O {[%emt 0:01:31]} e5 {[%emt 0:03:13]} 10. dxe5 {[%emt 0:01:02]} Nxe5 {[%emt 0:00:05]} 11. Nxe5 {[%emt 0:00:20]} Qxe5 {[%emt 0:00:06]} 12. cxd5 {[%emt 0:00:46]} Rd8 {[%emt 0:24:02]} 13. Nc4 {[%emt 0:05:43]} Qxd5 {[%emt 0:00:37]} 14. Be2 {[%emt 0:00:16]} Be6 {[%emt 0:00:10]} 15. Qxd5 {[%emt 0:02:12]} Rxd5 {[%emt 0:01:13]} 16. Rfd1 {[%emt 0:02:12]} Rad8 {[%emt 0:04:52]} 17. Na5 {[%emt 0:05:17]} R8d7 {[%emt 0:00:09]} 18. Rxd5 {[%emt 0:02:16]} Bxd5 {[%emt 0:04:09]} 19. f3 {[%emt 0:07:21]} b6 {[%emt 0:09:19]} 20. Nb3 {[%emt 0:02:02]} c5 {[%emt 0:06:36]} 21. Kf2 {[%emt 0:07:45]} Kf8 {[%emt 0:00:33]} 22. Ke1 {[%emt 0:00:34]} Ke7 {[%emt 0:06:54]} 23. Nd2 {[%emt 0:03:21]} Ne8 {[%emt 0:02:53]} 24. a4 {[%emt 0:03:30]} Nd6 {[%emt 0:02:11]} 25. e4 {[%emt 0:05:36]} Bc6 {[%emt 0:00:56]} 26. Nf1 {[%emt 0:01:30]} f5 {[%emt 0:03:06]} 27. e5 {[%emt 0:13:47]} Nf7 {[%emt 0:01:03]} 28. f4 {[%emt 0:01:28]} Bxg2 {[%emt 0:00:42]} 29. Ne3 {[%emt 0:00:26]} Be4 {[%emt 0:00:04]} 30. Bc4 {[%emt 0:00:41]} Nd8 {[%emt 0:00:41]} 31. a5 {[%emt 0:00:55]} Ne6 {[%emt 0:07:05]} 32. axb6 {[%emt 0:00:59]} axb6 {[%emt 0:00:04]} 33. Ra6 {[%emt 0:03:37]} Nxf4 {[%emt 0:02:45]} 34. Rxb6 {[%emt 0:00:21]} Nd3+ {[%emt 0:01:58]} 35. Kf1 {[%emt 0:00:37]} f4 {[%emt 0:02:10]} 36. Nd1 {[%emt 0:00:44]} Bf5 {[%emt 0:00:38]} 37. e6 {[%emt 0:00:26]} Ra7 {[%emt 0:01:34]} 38. Nc3 {[%emt 0:01:59]} Nb4 {[%emt 0:01:54]} 39. Kf2 {[%emt 0:01:21]} g5 {[%emt 0:00:11]} 40. Nb5 {[%emt 0:00:00]} Ra8 {[%emt 0:00:50]} 41. Rb7+ {[%emt 0:06:37]} Kf6 {[%emt 0:01:11]} 42. Rf7+ {[%emt 0:00:37]} Ke5 {[%emt 0:07:50]} 43. e7 {[%emt 0:02:04]} Bg6 {[%emt 0:11:13]} 44. Rf8 {[%emt 0:01:21]} Re8 {[%emt 0:01:01]} 45. Rxe8 {[%emt 0:00:26]} Bxe8 {[%emt 0:00:02]} 46. Nc7 {[%emt 0:00:10]} Bg6 {[%emt 0:03:22]} 47. e8=Q+ {[%emt 0:02:21]} Bxe8 {[%emt 0:00:03]} 48. Nxe8 {[%emt 0:00:10]} g4 {[%emt 0:01:36]} 49. b3 {[%emt 0:02:14]} Nc6 {[%emt 0:03:20]} 50. Nc7 {[%emt 0:00:49]} Na5 {[%emt 0:00:26]} 51. Bg8 {[%emt 0:00:24]} h5 {[%emt 0:00:44]} 52. Na6 {[%emt 0:00:27]} Kd4 {[%emt 0:00:15]} 53. b4 {[%emt 0:00:22]} cxb4 {[%emt 0:00:06]} 54. Nxb4 {[%emt 0:00:06]} h4 {[%emt 0:00:54]} 1/2-1/2

[Event "DEN-ch Seniors 2018"]
[Site "Hvidovre"]
[Date "2018.02.17"]
[Round "6"]
[White "Marshall, Michael"]
[Black "Hvenekilde, Jorgen"]
[Result "1/2-1/2"]
[ECO "A10"]
[WhiteElo "1826"]
[BlackElo "2044"]
[Annotator "NA"]
[PlyCount "46"]
[EventDate "2018.??.??"]
[EventType "tourn"]
[EventCountry "DEN"]
[SourceTitle "playchess.com"]
[Source "ChessBase"]
[SourceQuality "1"]
[TimeControl "40/5400+30:1800+30"]

1. c4 {[%emt 0:00:00]} d6 {[%emt 0:00:35]} 2. g3 {[%emt 0:00:00]} g6 {[%emt 0:00:41]} 3. Nc3 {[%emt 0:00:00]} Nf6 {[%emt 0:00:11]} 4. Bg2 {[%emt 0:00:19]} Bg7 {[%emt 0:00:09] LiveBook: 878 Games} 5. e4 {[%emt 0:01:00]} c5 {[%emt 0:01:19]} 6. Nf3 {[%emt 0:05:22]} Nc6 {[%emt 0:02:28]} 7. O-O {[%emt 0:00:22]} O-O {[%emt 0:00:34]} 8. d3 {[%emt 0:03:51]} Bd7 {[%emt 0:05:27]} 9. h3 {[%emt 0:02:11]} a6 {[%emt 0:02:27]} 10. a4 {[%emt 0:08:12]} Rb8 {[%emt 0:08:55]} 11. Be3 {[%emt 0:02:42]} b6 $11 {[%emt 0:10:10]} 12. Qd2 {[%emt 0:05:08]} Re8 {[%emt 0:02:48]} 13. b3 {[%emt 0:08:30]} Bc8 14. d4 cxd4 15. Nxd4 Bd7 16. Nf3 Bc8 17. Kh2 Bb7 18. Nd4 Na5 19. Qc2 Nc6 20. Qd2 Nd7 21. f4 Nc5 22. Rad1 Nb4 23. Qc2 e6 1/2-1/2

[Event "DEN-ch Seniors 2018"]
[Site "Hvidovre"]
[Date "2018.02.17"]
[Round "6"]
[White "Matras, Ove"]
[Black "Schultz-Pedersen, Jesper"]
[Result "0-1"]
[ECO "A01"]
[WhiteElo "1781"]
[BlackElo "2068"]
[Annotator "NA"]
[PlyCount "60"]
[EventDate "2018.??.??"]
[EventType "tourn"]
[EventCountry "DEN"]
[SourceTitle "playchess.com"]
[Source "ChessBase"]
[SourceQuality "1"]
[TimeControl "40/5400+30:1800+30"]

1. b3 {[%emt 0:00:00]} e5 {[%emt 0:01:49]} 2. e3 {[%emt 0:01:02]} Nf6 {[%emt 0:00:25]} 3. Bb2 {[%emt 0:00:06]} d6 {[%emt 0:00:04]} 4. Nf3 {[%emt 0:01:21]} Be7 {[%emt 0:01:07]} 5. Be2 {[%emt 0:00:09]} O-O {[%emt 0:00:51]} 6. d4 {[%emt 0:00:11]} e4 {[%emt 0:04:28]} 7. Nfd2 {[%emt 0:00:10]} c6 {[%emt 0:01:12]} 8. O-O {[%emt 0:00:44]} Bf5 {[%emt 0:00:52]} 9. f3 {[%emt 0:00:59]} Nd5 {[%emt 0:03:20]} 10. Kf2 {[%emt 0:01:08]} Bg5 {[%emt 0:07:09]} 11. f4 {[%emt 0:01:10]} Re8 $2 {[%emt 0:21:59]} (11... Bf6 $15 {stays ahead.}) 12. Nc4 $2 {[%emt 0:07:02]} (12. fxg5 $16 {is necessary to keep the advantage.} Qxg5 13. Nc4) 12... Bh4+ {[%emt 0:04:41]} 13. g3 {[%emt 0:02:44]} b5 {[%emt 0:00:18]} 14. Nxd6 {[%emt 0:00:12]} Qxd6 {[%emt 0:00:36]} 15. gxh4 {[%emt 0:00:08]} Qh6 {[%emt 0:00:31]} 16. h5 {[%emt 0:00:49]} Bh3 {[%emt 0:01:59]} 17. Rg1 {[%emt 0:02:31]} Nxf4 {[%emt 0:01:56]} 18. d5 {[%emt 0:03:50]} f6 {[%emt 0:04:04]} (18... Ng2 $142 19. Rxg2 Bxg2) 19. c4 {[%emt 0:05:15]} Nxe2 {[%emt 0:02:54]} 20. Qxe2 {[%emt 0:00:46]} bxc4 {[%emt 0:01:37]} 21. bxc4 {[%emt 0:01:34]} Na6 {[%emt 0:02:22]} (21... cxd5 $17 22. Rg3 Be6) 22. Rg3 {[%emt 0:03:30]} Bf5 $14 {[%emt 0:02:35]} ({Better is} 22... Bd7 $15) 23. Ba3 {[%emt 0:01:14]} cxd5 {[%emt 0:03:55]} 24. cxd5 {[%emt 0:01:25]} Rac8 {[%emt 0:02:01]} 25. Bd6 {[%emt 0:01:06]} Nc5 {[%emt 0:01:45]} 26. Bf4 {[%emt 0:02:56]} g5 {[%emt 0:02:25]} 27. hxg6 {[%emt 0:06:42]} Qxh2+ {[%emt 0:00:45]} 28. Ke1 {[%emt 0:01:36]} Nd3+ {[%emt 0:01:00]} 29. Kd1 Rc1+ 30. Kd2 Rcc8 {Ke1 Ra8+} 0-1

[Event "DEN-ch Seniors 2018"]
[Site "Hvidovre"]
[Date "2018.02.17"]
[Round "6"]
[White "Larsen, Arne Walther"]
[Black "Rosenlund, Thorbjorn"]
[Result "0-1"]
[ECO "A06"]
[WhiteElo "1766"]
[BlackElo "2245"]
[Annotator "NA"]
[PlyCount "53"]
[EventDate "2018.??.??"]
[EventType "tourn"]
[EventCountry "DEN"]
[SourceTitle "playchess.com"]
[Source "ChessBase"]
[SourceQuality "1"]
[TimeControl "40/5400+30:1800+30"]

{[%evp 8,53,18,11,19,26,18,16,0,0,0,-5,24,23,37,5,23,-10,32767,32767,32767,32767,32767,-147,32767,32767,-107,-153,32767,-161,32767,-129,-59,-60,32767,32767,-137,-155,-144,-391,-407,-392,-392,-443,-443,32767,-460,-643]} 1. Nf3 d5 {[%emt 0:02:46]} 2. g3 {[%emt 0:00:08]} Nf6 {[%emt 0:00:35]} 3. Bg2 {[%emt 0:00:16]} Bf5 {[%emt 0:02:18]} 4. d3 {[%emt 0:01:48]} e6 {[%emt 0:03:46]} 5. Nbd2 {[%emt 0:03:28]} h6 {[%emt 0:00:46]} 6. O-O {[%emt 0:00:12]} Be7 {[%emt 0:02:26]} 7. b3 {[%emt 0:02:44] LiveBook: 56 Games A07: Réti Opening: New York and Capablanca Systems} a5 {[%emt 0:01:06]} (7... O-O 8. Bb2 c5 9. Re1 Nc6 10. e4 Bh7 11. Ne5 Nxe5 12. Bxe5 Rc8 13. a4 b6 14. h3 Re8 15. f4 a6 16. Qe2 b5 17. axb5 axb5 {1-0 (32) Maghsoodloo,P (2584)-Van Wely,L (2675) Bandar e Anzali 2017}) 8. c4 {[%emt 0:03:00]} O-O {[%emt 0:02:46]} 9. Bb2 {[%emt 0:00:50]} a4 {[%emt 0:03:07]} 10. bxa4 {[%emt 0:02:17]} Na6 $146 {[%emt 0:04:43]} ({Predecessor:} 10... c6 11. Rb1 Nbd7 12. Bxf6 Bxf6 13. Rxb7 Nc5 14. Rb4 Qa5 15. a3 Nxa4 16. Qc2 Nc3 {½-½ (26) Quintero Calderon,R (1748)-Bandiera,A (1919) IECG email 2002}) 11. cxd5 {[%emt 0:14:28]} exd5 {[%emt 0:00:32]} 12. Ne5 {[%emt 0:07:13]} Nc5 {[%emt 0:01:28]} 13. Nb3 {[%emt 0:03:02]} Nxa4 {[%emt 0:01:34]} 14. Bd4 {[%emt 0:01:45]} c5 {[%emt 0:07:52]} 15. Be3 {[%emt 0:00:47]} Qc7 {[%emt 0:10:38]} 16. Nf3 {[%emt 0:03:55]} Bd6 {[%emt 0:07:35]} 17. Bd2 {[%emt 0:04:22]} Rfd8 {[%emt 0:06:28]} 18. Qc1 {[%emt 0:06:12]} Qe7 {[%emt 0:03:31]} 19. Re1 {[%emt 0:02:57]} d4 {[%emt 0:03:12]} ({Black should play} 19... Re8 $17 20. Rb1 Qd7) 20. e4 {[%emt 0:04:01]} dxe3 {[%emt 0:00:18]} 21. Rxe3 {[%emt 0:00:46] [#]} Qc7 $1 {[%emt 0:01:36]} 22. Nh4 {[%emt 0:03:46]} Bh7 {[%emt 0:01:46]} 23. Be4 $2 {[%emt 0:00:59]} (23. Qc4 $17) 23... Nxe4 {[%emt 0:01:58]} 24. dxe4 {[%emt 0:00:31]} c4 {[%emt 0:02:54]} 25. Nd4 {[%emt 0:00:39]} Be5 {[%emt 0:00:26]} 26. Nb5 {[%emt 0:03:12]} Qd7 {[%emt 0:02:07]} 27. Bc3 $19 {[%emt 0:01:34]} (27. Rb1 $142 Qxd2 28. Nf3 Qxc1+ 29. Rxc1) 0-1

[Event "DEN-ch Seniors 2018"]
[Site "Hvidovre"]
[Date "2018.02.18"]
[Round "7"]
[White "Schultz-Pedersen, Jesper"]
[Black "Baliuniene, Margarita"]
[Result "1-0"]
[ECO "B20"]
[WhiteElo "2068"]
[BlackElo "1881"]
[Annotator "NA RC"]
[PlyCount "127"]
[EventDate "2018.??.??"]
[EventType "tourn"]
[EventCountry "DEN"]
[SourceTitle "playchess.com"]
[Source "ChessBase"]
[SourceQuality "1"]
[TimeControl "40/5400+30:1800+30"]

{[%evp 8,121,25,21,23,3,4,-8,13,-25,27,6,27,25,32767,32767,32767,32767,-10,-29,-39,-51,102,110,118,32767,141,130,204,32767,32767,32767,32767,32767,32767,32767,32767,32767,32767,32767,32767,32767,32767,32767,32767,32767,291,185,201,197,181,104,125,100,108,114,200,45,53,32767,32767,32767,32767,52,52,15,420,32767,32767,32767,32767,32767,32767,32767,32767,32767,3522,588,32767,32767,4141,11016,4137,10302,12849,29984,29971,29985,29975,29986,29986,8,29987,29988,29988,29989,29989,29990,29991,4145,29992,29993,29993,4145,29993,4149,29993,29993,29993,4149,29994,29995,29995,29995,29995,29996]} 1. e4 {[%emt 0:00:00]} c5 {[%emt 0:00:04]} 2. b4 {[%emt 0:00:00]} cxb4 {[%emt 0:00:50]} 3. a3 {[%emt 0:00:00]} Nc6 {[%emt 0:00:35] B20: Sicilian: Unusual White 2nd moves} 4. Nf3 {[%emt 0:03:26]} (4. axb4 Nxb4 5. d4 d5 6. c3 Nc6 7. exd5 Qxd5 8. Na3 Bf5 9. Nb5 Rc8 10. Nxa7 Nxa7 11. Rxa7 e5 12. Nf3 exd4 13. Nxd4 Bd7 14. Nb5 Qxd1+ 15. Kxd1 {1-0 (27) Carlsen,M (2837)-Inarkiev,E (2689) Riadh 2017}) 4... bxa3 {[%emt 0:05:07] LiveBook: 3 Games} 5. d4 {[%emt 0:00:43]} ({Much weaker is} 5. Rxa3 e6 $15) 5... d6 {[%emt 0:02:23]} 6. Nxa3 {[%emt 0:01:10]} Nf6 {[%emt 0:06:09]} 7. Bd3 {[%emt 0:01:16]} Bg4 $146 {[%emt 0:01:40]} ({Predecessor:} 7... g6 8. O-O Bg7 9. c3 O-O 10. Qe2 a6 11. Be3 Rb8 {0-1 (37) Moussard,J (2444)-Matlakov,M (2694) Montpellier 2015}) 8. c3 {[%emt 0:00:30]} g6 {[%emt 0:01:12]} 9. h3 {[%emt 0:01:50]} Bxf3 {[%emt 0:00:17]} 10. Qxf3 {[%emt 0:01:05]} Bg7 {[%emt 0:00:25]} 11. O-O {[%emt 0:03:02]} O-O {[%emt 0:00:24]} 12. Qg3 {[%emt 0:01:00]} Nh5 {[%emt 0:14:06]} 13. Qh2 {[%emt 0:05:13]} e5 {[%emt 0:04:54]} 14. g4 {[%emt 0:04:26]} exd4 $2 {[%emt 0:05:26]} (14... Nf6 $15 15. d5 Na5) 15. gxh5 {[%emt 0:01:25]} dxc3 {[%emt 0:00:05]} 16. Nc2 {[%emt 0:00:58]} Ne5 {[%emt 0:07:56]} ({Black should try} 16... Qh4) 17. Be2 {[%emt 0:00:50]} d5 {[%emt 0:04:04]} (17... gxh5 $16 18. f4 Nc6) 18. Rd1 {[%emt 0:10:54]} Qh4 {[%emt 0:02:48]} 19. f4 {[%emt 0:06:45]} Nc4 {[%emt 0:02:03]} 20. Rxd5 {[%emt 0:13:42]} Nb2 {[%emt 0:02:41]} 21. Be3 {[%emt 0:02:13]} Qe7 {[%emt 0:04:43]} 22. Qg2 {[%emt 0:02:19]} Rfd8 {[%emt 0:00:16]} 23. Rxa7 {[%emt 0:04:30]} Rxa7 {[%emt 0:00:44]} 24. Bxa7 {[%emt 0:00:02]} Rxd5 {[%emt 0:00:29]} 25. exd5 {[%emt 0:00:08]} b5 {[%emt 0:01:25]} 26. Qf2 {[%emt 0:02:50]} Qb7 {[%emt 0:04:33]} 27. Bd4 {[%emt 0:03:46]} (27. d6 $142) 27... Qxd5 {[%emt 0:01:11]} 28. Bxg7 {[%emt 0:01:38]} Kxg7 {[%emt 0:00:09]} 29. hxg6 {[%emt 0:02:10]} ({White should play} 29. Qe3 Na4 30. hxg6) 29... hxg6 {[%emt 0:01:15]} 30. Qd4+ {[%emt 0:00:59]} Qxd4+ {[%emt 0:00:23]} 31. Nxd4 {[%emt 0:00:02]} b4 {[%emt 0:00:07] [#]} (31... Nc4 $16 32. Kf2 Kf6) 32. Kf2 {[%emt 0:00:38]} (32. Nc2 $1 $18) 32... Na4 $1 {[%emt 0:03:44]} 33. Bd1 {[%emt 0:04:51]} Nc5 {[%emt 0:00:07]} 34. Kf3 {[%emt 0:04:18]} f5 {[%emt 0:04:38]} 35. Ke3 {[%emt 0:07:08]} Kf6 {[%emt 0:00:21]} 36. h4 {[%emt 0:00:29]} Ne4 $2 {[%emt 0:01:51]} (36... Kg7 $1 $11 {und Schwarz ist OK.}) 37. Nc6 {[%emt 0:01:28]} Kg7 {[%emt 0:04:03]} 38. Nxb4 {[%emt 0:01:01]} Kh6 {[%emt 0:00:05]} 39. Nc2 {[%emt 0:02:58]} Nf6 {[%emt 0:01:29]} 40. Bf3 {[%emt 0:02:33]} Nh5 {[%emt 0:33:16]} 41. Nb4 {[%emt 0:30:43]} Ng3 {[%emt 0:01:11]} 42. Kd3 {[%emt 0:00:59]} Ne4 {[%emt 0:00:40]} 43. Nd5 {[%emt 0:03:35]} Nf2+ {[%emt 0:00:00]} 44. Kxc3 {[%emt 0:00:00]} Nh3 {[%emt 0:00:00]} 45. Kd4 {[%emt 0:00:00]} Nxf4 {[%emt 0:00:00]} 46. Nxf4 {[%emt 0:00:00]} g5 {[%emt 0:00:00]} 47. hxg5+ {[%emt 0:00:00]} Kxg5 {[%emt 0:00:00]} 48. Ke5 {[%emt 0:00:00]} Kh4 {[%emt 0:00:00]} 49. Kxf5 {[%emt 0:00:00]} Kg3 {[%emt 0:00:00]} 50. Ke4 {[%emt 0:00:00]} Kh4 {[%emt 0:00:00]} 51. Ne6 {[%emt 0:00:00]} Kg3 {[%emt 0:01:11]} 52. Nd4 {[%emt 0:00:00]} Kh4 {[%emt 0:01:40]} 53. Kf4 {[%emt 0:00:00]} Kh3 {[%emt 0:00:07]} 54. Nc2 {[%emt 0:00:00]} Kh4 {[%emt 0:01:42]} 55. Ne1 {[%emt 0:00:00]} (55. Ne3 $142 Kh3 56. Bg4+ Kh2 57. Kf3 Kg1 58. Kg3 Kh1 59. Kf2 Kh2 60. Nf1+ Kh1 61. Bf3#) 55... Kh3 {[%emt 0:00:09]} 56. Ng2 {[%emt 0:00:00]} (56. Bg4+ $142 Kh2 57. Kf3 Kg1 58. Bh3 Kh2 59. Kg4 Kg1 60. Kg3 Kh1 61. Bg2+ Kg1 62. Nf3#) 56... Kh2 {[%emt 0:00:08]} 57. Bd5 {[%emt 0:00:00]} Kh3 {[%emt 0:01:51]} 58. Kf3 {[%emt 0:00:00]} Kh2 {[%emt 0:00:09]} 59. Be6 {[%emt 0:00:00]} Kg1 {[%emt 0:00:31]} 60. Kg3 {[%emt 0:00:00]} Kf1 {[%emt 0:00:06]} 61. Bc4+ {[%emt 0:00:00]} Kg1 {[%emt 0:00:08]} 62. Nf4 {[%emt 0:00:00]} Kh1 {[%emt 0:00:12]} 63. Bb5 {[%emt 0:00:00]} Kg1 {[%emt 0:00:18]} 64. Nh3+ {[%emt 0:00:00]} 1-0

[Event "DEN-ch Seniors 2018"]
[Site "Hvidovre"]
[Date "2018.02.18"]
[Round "7"]
[White "Hvenekilde, Jorgen"]
[Black "Sorensen, Flemming Louv"]
[Result "1/2-1/2"]
[ECO "C02"]
[WhiteElo "2044"]
[BlackElo "1996"]
[Annotator "NA RC"]
[PlyCount "91"]
[EventDate "2018.??.??"]
[EventType "tourn"]
[EventCountry "DEN"]
[SourceTitle "playchess.com"]
[Source "ChessBase"]
[SourceQuality "1"]
[TimeControl "40/5400+30:1800+30"]

{[%evp 8,91,-30,-26,-37,-49,-11,-24,1,-43,-30,-53,-22,-21,-10,-48,32767,-19,0,-32,0,-18,-11,-35,32767,32767,32767,32767,32767,32767,32767,32767,32767,32767,32767,32767,32767,32767,32767,32767,32767,32767,32767,32767,-237,-272,-184,-173,-186,-249,-265,-281,-279,32767,32767,-167,-178,32767,-174,-185,-106,-85,-84,-94,32767,32767,32767,32767,32767,32767,32767,32767,32767,32767,32767,32767,32767,32767,32767,32767,32767,-66,-8,-8,-8,-28]} 1. e4 e6 2. d4 d5 3. e5 c5 4. Nf3 cxd4 5. Bd3 Nc6 6. O-O {LiveBook: 186 Games} Nge7 7. Re1 Ng6 {C02: French: Advance Variation} 8. a3 Be7 (8... a5 9. g3 f6 10. exf6 gxf6 11. Nh4 Nxh4 12. Qh5+ Kd7 13. Qxh4 Kc7 14. c3 e5 15. Bb5 {0-1 (23) Arribas Lopez,A (2488)-Cruz,C (2549) Elgoibar 2013}) 9. b4 Bd7 10. b5 Na5 11. Nxd4 $146 ({Predecessor:} 11. Qe2 Qb6 12. h4 Bxh4 13. g3 Be7 14. Bb2 Rc8 {1-0 (33) Esquivias Gomez,F (1951)-Sotoca Aguado,J (1976) Madrid 2013}) 11... Rc8 12. Nd2 Qc7 13. N2f3 Nc4 14. Qe2 Qa5 15. g3 Qc3 16. Bd2 Nxd2 17. Qxd2 Nxe5 18. Qxc3 Nxf3+ 19. Nxf3 Rxc3 20. a4 O-O 21. Ne5 Bc8 22. f4 Bc5+ 23. Kg2 Bb4 24. Reb1 Ba5 25. Rb3 f6 26. Nf3 Re8 27. Rxc3 Bxc3 28. Ra3 (28. Rd1 $142) 28... Ba5 29. c4 {[#]} e5 $1 30. Bf1 e4 31. Nd4 Bb6 32. Nb3 dxc4 33. Bxc4+ Be6 (33... Kf8 $19 34. Bd5 Bg4) 34. Bxe6+ Rxe6 35. a5 Be3 36. Kf1 Rd6 37. Ra4 Rd3 38. Na1 Rd4 39. Rxd4 Bxd4 40. Nb3 Bc3 41. f5 Kf7 42. Ke2 Ke7 43. Ke3 Kd6 44. Kxe4 a6 ({Lieber} 44... Be5 $15) 45. bxa6 $1 bxa6 46. g4 $11 1/2-1/2